fUST/lending_fUST_20240114
["ID","MTS","AMOUNT","RATE_DAILY","PERIOD"]
[311553820,1705227042378,-167.409001,0.00035544,2]
[311553821,1705227042389,-192.361745,0.00035544,2]
[311553822,1705227042400,-156.401484,0.00035544,2]
[311553823,1705227042411,-155.01256505,0.00035544,2]
[311553824,1705227042426,-33.11391195,0.00035544,2]
[311553825,1705227042437,-167.847804,0.00035544,2]
[311553826,1705227042450,-150.529243,0.00035544,2]
[311553827,1705227042460,-176.585617,0.00035544,2]
[311553828,1705227042470,-150.529243,0.00035544,2]
[311553829,1705227042480,-176.585618,0.00035544,2]
[311553830,1705227042489,-230.805422,0.00035576,2]
[311553831,1705227042498,-182.521146,0.00035576,2]
[311553832,1705227042507,-47.81608997,0.00035584,30]
[311553833,1705227042518,-746.18391003,0.00035584,30]
[311553834,1705227042527,-794.0,0.00035594,30]
[311553835,1705227042536,-500.0,0.000356,7]
[311553836,1705227042545,-794.0,0.00035604,30]
[311553837,1705227042554,-301.0,0.00035614,2]
[311553839,1705227042665,-500.0,0.00035616,2]
[311553841,1705227042676,-500.0,0.00035616,2]
[311553842,1705227042686,-500.0,0.00035616,2]
[311553843,1705227042695,-500.0,0.00035616,2]
[311553844,1705227042704,-500.0,0.00035616,2]
[311553845,1705227042714,-500.0,0.00035616,2]
[311553846,1705227042723,-500.0,0.00035616,2]
[311553847,1705227042732,-500.0,0.00035616,2]
[311553848,1705227042741,-500.0,0.00035616,2]
[311553849,1705227042751,-500.0,0.00035616,2]
[311553850,1705227042760,-500.0,0.00035616,2]
[311553851,1705227042769,-500.0,0.00035616,2]
[311553853,1705227042778,-500.0,0.00035616,2]
[311553855,1705227042787,-500.0,0.00035616,2]
[311553857,1705227042796,-205.89568071,0.00035616,2]
[311553859,1705227042806,-512.98740442,0.00035616,2]
[311553861,1705227042815,-507.33481671,0.00035616,2]
[311553863,1705227042824,-750.0,0.00035616,10]
[311553865,1705227042833,-310.33030438,0.00035616,7]
[311553867,1705227042842,-1615.362542,0.00035616,120]
[311553869,1705227042851,-151.0,0.00035641,4]
[311553871,1705227042860,-1000.0,0.000357,15]
[311553873,1705227042869,-1000.0,0.00036,36]
[311553875,1705227042877,-230.25509034,0.00036,4]
[311553877,1705227042886,-144.32418478,0.00036,14]
[311553896,1705227043164,-410.4291264,0.00029999,4]
[311553897,1705227043174,-500.0,0.00029999,4]
[311553898,1705227043183,-500.0,0.00029999,4]
[311553899,1705227043192,-477.39420188,0.00029999,4]
[311553900,1705227043202,-401.23128037,0.00029999,4]
[311553901,1705227043211,-225.04101344,0.00029999,4]
[311553958,1705227046178,-154.9690062,0.00029998,2]
[311553959,1705227046188,-274.95898656,0.00029999,4]
[311553960,1705227046198,-80.2083377,0.00029999,4]
[311553961,1705227046235,-345.57259996,0.00029999,4]
[311553962,1705227046245,-482.72292578,0.00032999,7]
[311553966,1705227342128,-1739.0,0.00019816,2]
[311553969,1705227517114,178.3,0.00029,30]
[311553994,1705227822138,200.0,0.00021795,7]
[311553995,1705227910008,-255.52150498,0.00019797,2]
[311553996,1705227910124,-5.21472459,0.00019797,2]
[311553997,1705227924032,-160.8526865,0.00019796,2]
[311553998,1705227924058,-159.61853818,0.00019797,2]
[311553999,1705227924151,-6.54022908,0.00019797,2]
[311554000,1705228004358,5136.25940385,0.00019203,2]
[311554001,1705228047846,3846.08197579,0.00019203,2]
[311554002,1705228062949,-298.26083422,0.00019796,2]
[311554003,1705228062975,-146.54973287,0.00019797,2]
[311554004,1705228063066,-9.07776668,0.00019797,2]
[311554005,1705228063092,-154.9690062,0.00019797,2]
[311554008,1705228122266,200.0,0.00021788,7]
[311554009,1705228125131,-12000.0,0.00019709,2]
[311554010,1705228125416,-1700.42570199,0.00019709,2]
[311554011,1705228125443,-159.15098982,0.0001971,2]
[311554053,1705228232277,-15891.22665678,0.00019804,2]
[311554054,1705228232286,-19838.74080195,0.00019805,2]
[311554055,1705228232295,-3005.96995897,0.00019816,2]
[311554056,1705228232308,-326.9659131,0.00021353,2]
[311554058,1705228232318,-3000.0,0.00021354,2]
[311554059,1705228232326,-2928.5969178,0.00021518,2]
[311554061,1705228232336,-24900.0,0.00021549,2]
[311554063,1705228232345,-284.6644195,0.00021652,2]
[311554065,1705228232354,-167.879946,0.00021808,2]
[311554067,1705228232363,-157.928056,0.00021918,2]
[311554069,1705228232372,-1003.6987396,0.00021984,2]
[311554070,1705228232381,-3279.23161431,0.00022,2]
[311554072,1705228232393,-666.27783019,0.00022,2]
[311554074,1705228232402,-156.97486621,0.00022,2]
[311554076,1705228232411,-157.928056,0.00022773,2]
[311554078,1705228232420,-157.928056,0.00023627,2]
[311554080,1705228232428,-157.928056,0.00024482,2]
[311554082,1705228232437,-4714.61123434,0.00025,2]
[311554084,1705228232446,-1954.82697627,0.00027,2]
[311554086,1705228232455,-2000.0,0.00027,2]
[311554087,1705228232464,-976.18563318,0.00027898,2]
[311554089,1705228232474,-409.89154695,0.00028,2]
[311554091,1705228232483,-197.246188,0.00028432,2]
[311554093,1705228232493,-444.09413319,0.00028539,2]
[311554121,1705228238437,-1853.14878469,0.00028539,2]
[311554123,1705228238448,-2316.43243532,0.0002854,3]
[311554137,1705228238564,-685.05415839,0.0002854,3]
[311554139,1705228238573,-2472.81732891,0.0002854,3]
[311554141,1705228238582,-261.12680454,0.00029,2]
[311554143,1705228238591,-1823.10005026,0.00029,2]
[311554145,1705228238600,-2305.37797556,0.00029099,2]
[311554147,1705228238609,-9103.92623029,0.000291,4]
[311554149,1705228238618,-387.47749827,0.00029351,2]
[311554151,1705228238627,-152.13591374,0.00029351,2]
[311554153,1705228238637,-394.75281979,0.00029351,2]
[311554155,1705228238645,-349.55653218,0.00029351,2]
[311554157,1705228238655,-610.46336868,0.00029351,2]
[311554159,1705228238663,-507.29882487,0.0002979,3]
[311554161,1705228238672,-547.28833906,0.00030986,15]
[311554163,1705228238681,-368.54445333,0.00030987,5]
[311554165,1705228238691,-962.34,0.00030988,3]
[311554167,1705228238700,-801.95,0.00030988,3]
[311554169,1705228238709,-668.29,0.00030988,3]
[311554171,1705228238718,-556.91,0.0003099,3]
[311554173,1705228238727,-525.86975939,0.00030998,4]
[311554174,1705228238736,-643.39406713,0.00030998,4]
[311554177,1705228238745,-7948.24101532,0.00030998,2]
[311554178,1705228238754,-154.98450155,0.00030998,2]
[311554180,1705228238763,-2704.5008554,0.00030998,5]
[311554183,1705228238773,-261.09526354,0.00030998,4]
[311554185,1705228238782,-216.5479733,0.00030998,4]
[311554187,1705228238791,-339.1473135,0.00030998,4]
[311554189,1705228238800,-4791.46238905,0.00030998,4]
[311554191,1705228238809,-298.26083422,0.00030998,4]
[311554193,1705228238818,-830.37019961,0.00030998,4]
[311554195,1705228238827,-3739.83692248,0.00030999,4]
[311554197,1705228238835,-56588.74524535,0.00031,4]
[311554302,1705228241483,-2179.31886334,0.00031,4]
[311554303,1705228241495,-2914.17026195,0.00031,4]
[311554304,1705228241507,-10395.21328703,0.00031,4]
[311554305,1705228241518,-1901.62083929,0.00031,4]
[311554363,1705228243410,-1609.20220252,0.00031,4]
[311554374,1705228243459,-60.61688366,0.00031,4]
[311554427,1705229432446,-154.9690062,0.00024892,2]
[311554428,1705229432457,-326.9659131,0.00024892,2]
[311554429,1705229432466,-452.00948206,0.00024893,2]
[311554430,1705229432475,-1784.26976066,0.00024895,2]
[311554544,1705229438671,-1026.46241259,0.00024895,2]
[311554545,1705229438680,-5313.9463782,0.00024896,2]
[311554546,1705229438689,-487.128022,0.0002508,2]
[311554547,1705229438698,-19336.6861829,0.00025681,2]
[311554553,1705229441576,-901.94060821,0.00025681,2]
[311554554,1705229441587,-404.01179138,0.00025681,2]
[311554555,1705229441599,-1269.4770729,0.00025681,2]
[311554556,1705229441634,-2301.45632229,0.00025681,2]
[311554557,1705229441647,-686.42802232,0.00025681,2]
[311554558,1705229441657,-162.35455729,0.0002679,3]
[311554559,1705229441667,-2030.72904445,0.00026999,2]
[311554560,1705229441677,-150.0,0.00027,2]
[311554561,1705229441686,-665.19022046,0.000272,2]
[311554562,1705229441701,-2059.1129734,0.000272,2]
[311554603,1705229446545,-59.29128974,0.000272,2]
[311554604,1705229446556,-622.71784817,0.0002854,2]
[311554605,1705229446567,-1052.04914877,0.0002854,3]
[311554606,1705229446576,-5000.0,0.0002854,5]
[311554607,1705229446585,-150.0,0.000289,2]
[311554608,1705229446595,-1486.64369896,0.00029,2]
[311554609,1705229446673,-472.55486556,0.00029,2]
[311554624,1705229599097,157.96,0.0003,120]
[311554648,1705230222398,200.0,0.00023099,7]
[311554662,1705230373547,1854.0,0.00027,19]
[311554855,1705230638836,-154.9690062,0.00020986,2]
[311554857,1705230638845,-154.9690062,0.00020987,4]
[311554859,1705230638855,-2810.73217325,0.00020991,2]
[311554861,1705230638864,-1379.48780102,0.00020992,2]
[311554862,1705230638874,-2771.07736543,0.00021,2]
[311554864,1705230638883,-7913.75235232,0.00021,2]
[311554866,1705230638892,-3945.5094445,0.00023045,2]
[311554868,1705230638902,-24900.0,0.00023046,2]
[311554870,1705230638911,-162.35455728,0.00023146,2]
[311554872,1705230638920,-243.564011,0.00023246,2]
[311554874,1705230638929,-6536.15799103,0.00028,2]
[311554875,1705230638938,-167.879946,0.00028062,2]
[311554877,1705230638948,-1909.61083174,0.00028534,3]
[311554879,1705230638958,-5000.0,0.00028534,5]
[311554881,1705230638967,-5000.0,0.00028549,5]
[311554883,1705230638977,-2305.37797556,0.0002935,2]
[311554884,1705230638986,-187.97753323,0.00029351,2]
[311554886,1705230638995,-242.78332878,0.00029351,2]
[311554888,1705230639005,-341.1824947,0.00029351,2]
[311554889,1705230639014,-153.59913519,0.000299,2]
[311554891,1705230639023,-487.87,0.0002999,3]
[311554893,1705230639032,-406.56,0.0002999,3]
[311554895,1705230639041,-350.84215581,0.0003,2]
[311554897,1705230639050,-18536.63526462,0.0003,7]
[311554899,1705230639063,-1463.36473538,0.0003,7]
[311554901,1705230639073,-456.07361588,0.00030899,15]
[311554902,1705230639082,-337.20341221,0.00030899,5]
[311554904,1705230639093,-31.34104112,0.00030899,5]
[311554906,1705230639102,-2372.70600341,0.000309,2]
[311554924,1705230641763,-470.11747596,0.000309,2]
[311554925,1705230641773,-61.72677271,0.00030998,4]
[311554991,1705230646813,-283.16858074,0.00030998,4]
[311554992,1705230646823,-848.23978998,0.00030998,4]
[311554993,1705230646832,-16.23392928,0.00030999,4]
[311555161,1705231838026,-154.9690062,0.00028224,4]
[311555163,1705231838035,-167.879946,0.00028225,2]
[311555165,1705231838044,-5807.92373904,0.00028409,2]
[311555195,1705231840944,-11782.57,0.00028409,2]
[311555196,1705231841000,-1021.00099137,0.00028409,2]
[311555197,1705231841012,-1092.60436965,0.00028409,2]
[311555210,1705231843041,-3438.25150143,0.00028409,2]
[311555214,1705231845986,-507.82433901,0.00028409,2]
[311555311,1705233033660,-154.98450155,0.00028287,4]
[311555312,1705233033671,-331.32705098,0.00028288,2]
[311555313,1705233033680,-5957.41962199,0.0002829,2]
[311555314,1705233033690,-2810.73217325,0.00028291,2]
[311555315,1705233033700,-200.39182268,0.000283,2]
[311555316,1705233033709,-200.39182268,0.000283,2]
[311555317,1705233033719,-1823.10005026,0.00028409,2]
[311555318,1705233033729,-3314.65607422,0.00028409,2]
[311555319,1705233033738,-261.12680454,0.00028409,2]
[311555320,1705233033748,-6472.361046,0.00028499,2]
[311555321,1705233033757,-406.3370151,0.00028534,2]
[311555322,1705233033767,-285.387666,0.00028675,2]
[311555323,1705233033777,-306.0,0.0002889,2]
[311555324,1705233033786,-153.0,0.0002889,2]
[311555325,1705233033795,-153.0,0.000289,2]
[311555326,1705233033805,-153.0,0.00028956,2]
[311555327,1705233033815,-2305.37797556,0.00029,2]
[311555328,1705233033824,-184.51309442,0.00029351,2]
[311555329,1705233033834,-208.79609768,0.00029351,2]
[311555330,1705233033843,-406.53427179,0.00029351,2]
[311555331,1705233033855,-39.01887677,0.00029351,2]
[311555332,1705233033864,-154.615468,0.00029356,2]
[311555333,1705233033874,-198.7191111,0.00029356,2]
[311555334,1705233033883,-153.0,0.00029712,2]
[311555335,1705233033892,-153.0,0.00029712,2]
[311555336,1705233033902,-153.0,0.00029712,2]
[311555337,1705233033911,-153.0,0.00029712,2]
[311555338,1705233033920,-456.07361588,0.0003,15]
[311555339,1705233033930,-368.54445333,0.00030259,5]
[311555340,1705233033939,-153.5835952,0.0003026,2]
[311555341,1705233033949,-153.0,0.0003026,2]
[311555342,1705233033958,-153.0,0.0003026,2]
[311555343,1705233033967,-429.33,0.00030989,3]
[311555344,1705233033976,-5000.48136091,0.00030998,2]
[311555357,1705233039415,-300.1600001,0.00028289,14]
[311555374,1705233044064,-357.77,0.00028279,3]
[311555376,1705233044074,-349.94912812,0.00028289,14]
[311555377,1705233044085,-2509.61171508,0.00028289,14]
[311555497,1705233046864,-71083.47172173,0.00028289,14]
[311555498,1705233046873,-3701.84815849,0.00028708,2]
[311555499,1705233046882,-154.98450155,0.00028708,4]
[311555500,1705233046892,-525.0,0.00029351,2]
[311555501,1705233046901,-12300.35636591,0.00030998,2]
[311555502,1705233046910,-552.529217,0.00030999,2]
[311555503,1705233046920,-552.529217,0.00030999,2]
[311555504,1705233046930,-151.0,0.00030999,2]
[311555505,1705233046942,-151.0,0.00030999,2]
[311555506,1705233046951,-231.857289,0.00030999,2]
[311555507,1705233046960,-12657.0734277,0.00030999,4]
[311555508,1705233046969,-154.9690062,0.00030999,2]
[311555510,1705233046978,-1057.22440665,0.00030999,2]
[311555511,1705233046987,-282.77222254,0.00030999,3]
[311555512,1705233046997,-16106.67008055,0.00030999,14]
[311555513,1705233047006,-158.78714545,0.00030999,2]
[311555514,1705233047016,-538.47947859,0.00030999,4]
[311555515,1705233047034,-349.34291675,0.00031639,3]
[311555516,1705233047046,-155.17676055,0.00031898,4]
[311555517,1705233047055,-2372.57514057,0.00031898,4]
[311555518,1705233047066,-319.25153112,0.00031898,15]
[311555519,1705233047075,-552.529217,0.00031899,2]
[311555520,1705233047085,-552.529217,0.00031899,2]
[311555521,1705233047095,-151.0,0.00031899,2]
[311555522,1705233047105,-597.08154252,0.00031899,2]
[311555523,1705233047114,-386.26388145,0.00031899,2]
[311555524,1705233047124,-500.0,0.00031899,2]
[311555525,1705233047133,-500.0,0.00031899,2]
[311555526,1705233047142,-405.84380959,0.00031899,2]
[311555527,1705233047152,-500.0,0.00031899,2]
[311555528,1705233047162,-500.0,0.00031899,2]
[311555529,1705233047171,-466.81253896,0.00031899,2]
[311555530,1705233047180,-409.4503523,0.00031899,2]
[311555531,1705233047192,-500.0,0.00031899,2]
[311555532,1705233047201,-471.92909989,0.00031899,2]
[311555533,1705233047210,-346.76255184,0.00031899,2]
[311555534,1705233047219,-493.8808953,0.00031899,2]
[311555535,1705233047228,-500.0,0.00031899,2]
[311555536,1705233047237,-500.0,0.00031899,2]
[311555537,1705233047247,-500.0,0.00031899,2]
[311555538,1705233047256,-500.0,0.00031899,2]
[311555539,1705233047265,-172791.55027072,0.000319,2]
[311555726,1705234239215,-154.98450155,0.00028684,4]
[311555727,1705234239224,-2810.73217325,0.00028702,2]
[311555728,1705234239233,-560.82400817,0.00028703,2]
[311555729,1705234239242,-976.30954437,0.00028708,2]
[311555730,1705234239250,-1688.39659197,0.00028708,2]
[311555731,1705234239259,-250.0,0.00029043,2]
[311555732,1705234239268,-171.823296,0.00029386,2]
[311555733,1705234239277,-1820.85093223,0.00029393,2]
[311555734,1705234239288,-4946.31012216,0.00029393,2]
[311555735,1705234239299,-3457.30680216,0.00029393,2]
[311555736,1705234239310,-6350.14838899,0.00029393,2]
[311555737,1705234239319,-1550.55317535,0.00029394,2]
[311555738,1705234239330,-465.85500015,0.00029394,2]
[311555768,1705234243268,-929.1630865,0.00028534,5]
[311555770,1705234243281,-421.70266541,0.00028534,5]
[311555887,1705234973418,3000.0,0.00020392,2]
[311555894,1705235064606,7000.0,0.0001978,2]
[311555895,1705235064636,1749.09169119,0.0001978,2]
[311555898,1705235078614,8250.90830881,0.0001978,2]
[311555899,1705235078644,498.18338238,0.0001978,2]
[311555900,1705235096614,6109.33106715,0.00019187,2]
[311555901,1705235108905,3392.48555047,0.0001978,2]
[311555902,1705235108941,10000.0,0.0001978,2]
[311555903,1705235109394,-12000.0,0.0001978,2]
[311555904,1705235109477,-12000.0,0.0001978,2]
[311555905,1705235109659,-12000.0,0.0001978,2]
[311555906,1705235109794,-12000.0,0.0001978,2]
[311555907,1705235109915,-12000.0,0.0001978,2]
[311555908,1705235110102,-12000.0,0.0001978,2]
[311555909,1705235110224,-12000.0,0.0001978,2]
[311555910,1705235110349,-12000.0,0.0001978,2]
[311555911,1705235110447,-12000.0,0.0001978,2]
[311555912,1705235110691,-12000.0,0.0001978,2]
[311555913,1705235110729,-12000.0,0.0001978,2]
[311555914,1705235110808,-12000.0,0.0001978,2]
[311555915,1705235111246,-12000.0,0.0001978,2]
[311555916,1705235111296,-12000.0,0.0001978,2]
[311555917,1705235111377,-12000.0,0.0001978,2]
[311555918,1705235111614,-12000.0,0.0001978,2]
[311555919,1705235111711,-12000.0,0.0001978,2]
[311555920,1705235111811,-12000.0,0.0001978,2]
[311555921,1705235111993,-12000.0,0.0001978,2]
[311555922,1705235112030,-12000.0,0.0001978,2]
[311555923,1705235112158,-12000.0,0.0001978,2]
[311555924,1705235112265,-12000.0,0.0001978,2]
[311555925,1705235112414,-6341.80951668,0.0001978,2]
[311555926,1705235115966,-643.39406713,0.00019779,2]
[311555927,1705235115994,-2741.64964844,0.00019779,2]
[311555928,1705235116226,-69.08252481,0.00019779,2]
[311555929,1705235116253,-154.98450155,0.00019779,3]
[311555930,1705235127360,-12000.0,0.0001978,2]
[311555931,1705235127619,-12000.0,0.0001978,2]
[311555932,1705235127772,-12000.0,0.0001978,2]
[311555933,1705235127898,-2012.31103996,0.0001978,2]
[311555935,1705235160188,10000.0,0.00019688,2]
[311555936,1705235160604,-12000.0,0.00019688,2]
[311555937,1705235160889,-2900.0,0.00019688,2]
[311555943,1705235271635,661.8542805,0.00018843,2]
[311555944,1705235284833,-1379.95266542,0.00019745,2]
[311555945,1705235284860,-150.35350992,0.00019745,2]
[311555946,1705235284928,-210.60007009,0.00019745,2]
[311555947,1705235284953,-181.58424819,0.00019746,2]
[311555948,1705235285577,1031.29658725,0.00019745,2]
[311555949,1705235325007,2353.4531355,0.00018836,2]
[311555950,1705235336697,6768.5212993,0.0001883,2]
[311555951,1705235377365,169.851621,0.00019178,2]
[311555952,1705235378223,46.3196637,0.0001883,2]
[311555953,1705235378248,489.55526646,0.0001883,2]
[311555954,1705235379542,619.71873011,0.0001883,2]
[311555955,1705235382421,155.01395126,0.0001883,2]
[311555956,1705235386917,1351.60839685,0.0001883,5]
[311555957,1705235386966,1274.40351652,0.0001883,2]
[311555958,1705235387374,342.56618775,0.0001883,2]
[311555959,1705235402956,1274.02694836,0.0001883,2]
[311555960,1705235403889,3213.7770407,0.0001883,2]
[311555961,1705235408730,2027.65384512,0.0001883,2]
[311555962,1705235419890,2725.35705277,0.0001883,2]
[311555963,1705235429070,2704.5008554,0.00019814,5]
[311555969,1705235432418,-2710.13449611,0.00019814,2]
[311555970,1705235432428,-122.19081773,0.00019815,2]
[311555971,1705235432440,-564.76781264,0.00019815,2]
[311555972,1705235432449,-205.96099627,0.00019815,2]
[311555973,1705235432473,-1230.16603797,0.00019815,2]
[311556012,1705235438589,-258.28923131,0.00019815,2]
[311556014,1705235438600,-1240.6740252,0.00019816,2]
[311556017,1705235438610,-260.47007699,0.00019817,2]
[311556019,1705235438621,-81099.53375786,0.00019817,2]
[311556028,1705235438633,-272.14753769,0.00019818,2]
[311556029,1705235438785,-154.98450155,0.00019818,2]
[311556030,1705235438794,-154.98450155,0.00019818,3]
[311556031,1705235438804,-19672.51156169,0.00019818,2]
[311556032,1705235438813,-20873.9127642,0.00019818,2]
[311556033,1705235438822,-963.6489929,0.00019831,2]
[311556034,1705235438832,-2810.73217325,0.0001985,2]
[311556035,1705235438842,-626.485883,0.00019851,2]
[311556036,1705235438851,-1195.92132754,0.0002,2]
[311556037,1705235438862,-1003.6987396,0.00020524,2]
[311556038,1705235438871,-157.9280588,0.00021918,2]
[311556039,1705235438881,-3808.18397943,0.00022,2]
[311556040,1705235438890,-425.2676334,0.00027674,2]
[311556041,1705235438899,-2584.49698515,0.00027675,2]
[311556042,1705235438909,-442.023373,0.00028,2]
[311556043,1705235438917,-442.023373,0.00028,2]
[311556044,1705235438927,-518.63644967,0.0002834,3]
[311556045,1705235438936,-268.53777047,0.00028509,2]
[311556046,1705235438947,-15728.46479423,0.00028509,2]
[311556047,1705235438957,-191.32362191,0.00028509,2]
[311556048,1705235438968,-155.11189304,0.00028509,2]
[311556049,1705235438978,-442.023373,0.00028534,2]
[311556050,1705235438987,-442.023373,0.00028534,2]
[311556051,1705235438996,-3649.13424809,0.00028534,5]
[311556052,1705235439006,-261.12680454,0.00028534,2]
[311556053,1705235439015,-830.29368797,0.00028534,3]
[311556054,1705235439024,-517.27905118,0.00028534,2]
[311556055,1705235439034,-265.08488415,0.00028534,3]
[311556056,1705235439044,-5169.79023899,0.00028708,2]
[311556057,1705235439053,-187.5,0.00029351,2]
[311556058,1705235439062,-442.023373,0.00029394,2]
[311556059,1705235439072,-442.023373,0.00029394,2]
[311556060,1705235439081,-626.485883,0.00029776,2]
[311556061,1705235439090,-200.0,0.00030626,15]
[311556062,1705235439099,-442.023373,0.00031579,2]
[311556063,1705235439108,-442.023373,0.00031579,2]
[311556064,1705235439117,-23816.9487729,0.00031579,4]
[311556065,1705235439126,-178.57820369,0.00031898,4]
[311556066,1705235439135,-5086.26984595,0.00031898,4]
[311556067,1705235439144,-901.94254877,0.00031898,4]
[311556068,1705235439153,-162.81745454,0.00031898,4]
[311556069,1705235439162,-1050.84836442,0.00031898,4]
[311556070,1705235439172,-174.92184312,0.00031898,4]
[311556071,1705235439181,-155.03255684,0.00031898,4]
[311556072,1705235439191,-155.03255684,0.00031898,4]
[311556073,1705235439200,-155.22438348,0.00031898,4]
[311556074,1705235439210,-250.08638878,0.00031898,4]
[311556075,1705235439219,-15885.90268571,0.00031898,4]
[311556076,1705235439228,-2035.15445086,0.00031898,4]
[311556077,1705235439238,-20399.20146172,0.00031898,4]
[311556078,1705235439247,-587.05108958,0.00031898,4]
[311556079,1705235439257,-155.69292077,0.00031898,4]
[311556080,1705235439266,-449.77827105,0.00031898,4]
[311556081,1705235439275,-5752.27951362,0.00031898,4]
[311556082,1705235439284,-2521.80207579,0.00031898,4]
[311556083,1705235439294,-285.07735822,0.00031898,4]
[311556084,1705235439304,-200.03470348,0.00031898,4]
[311556085,1705235439313,-161.13707041,0.00031898,4]
[311556086,1705235439322,-1633.37370509,0.00031898,120]
[311556087,1705235439331,-223.96899239,0.00031898,4]
[311556088,1705235439340,-467.58133257,0.00031898,4]
[311556089,1705235439350,-695.98439071,0.00031898,4]
[311556090,1705235439359,-481.33405715,0.00031898,4]
[311556091,1705235439369,-525.22363698,0.00031898,4]
[311556092,1705235439378,-307.21146084,0.00031898,4]
[311556093,1705235439387,-155.24251227,0.00031898,4]
[311556094,1705235439396,-211.45829827,0.00031898,4]
[311556095,1705235439405,-632.85253942,0.00031898,4]
[311556096,1705235439414,-155.56688966,0.00031898,4]
[311556097,1705235439424,-442.023373,0.00031898,2]
[311556098,1705235439434,-442.023373,0.00031898,2]
[311556099,1705235439444,-442.023373,0.00031898,2]
[311556100,1705235439453,-442.023373,0.00031898,2]
[311556101,1705235439462,-151.0,0.00031898,2]
[311556102,1705235439471,-154.98450155,0.000319,2]
[311556103,1705235439480,-2506.61639008,0.000319,2]
[311556104,1705235439489,-1057.22440665,0.000319,2]
[311556105,1705235439499,-282.77222254,0.000319,3]
[311556106,1705235439508,-442.023373,0.000319,2]
[311556107,1705235439518,-442.023373,0.000319,2]
[311556108,1705235439526,-500.0,0.00031969,2]
[311556109,1705235439535,-405.84380959,0.00031969,2]
[311556110,1705235439544,-386.26388145,0.00031969,2]
[311556111,1705235439554,-635.07191389,0.00031969,2]
[311556112,1705235439563,-500.0,0.00031969,2]
[311556113,1705235439573,-500.0,0.00031969,2]
[311556114,1705235439582,-417.95707976,0.00031969,2]
[311556115,1705235439591,-228.94682492,0.00031969,2]
[311556116,1705235439600,-396.32853718,0.00031969,2]
[311556117,1705235439609,-245.67021138,0.00031969,2]
[311556118,1705235439618,-500.0,0.00031969,2]
[311556119,1705235439626,-500.0,0.00031969,2]
[311556120,1705235439636,-967.0,0.0003197,30]
[311556121,1705235439645,-219.75,0.0003197,30]
[311556122,1705235439655,-9318.0,0.0003197,30]
[311556123,1705235439665,-967.0,0.0003198,30]
[311556124,1705235439674,-150.5,0.0003198,30]
[311556125,1705235439684,-9318.0,0.0003198,30]
[311556126,1705235439693,-442.023373,0.0003198,2]
[311556127,1705235439703,-442.023373,0.0003198,2]
[311556128,1705235439712,-151.0,0.0003198,2]
[311556129,1705235439722,-151.0,0.0003198,2]
[311556130,1705235439732,-967.0,0.0003199,30]
[311556131,1705235439742,-150.5,0.0003199,30]
[311556132,1705235439756,-9318.0,0.0003199,30]
[311556133,1705235439766,-631.40803211,0.00031996,2]
[311556134,1705235439776,-361.39023911,0.00031997,2]
[311556135,1705235439785,-345.25858679,0.00031997,4]
[311556136,1705235439795,-155.07774672,0.00031998,4]
[311556137,1705235439804,-6464.54916941,0.00031998,4]
[311556138,1705235439813,-260.35384667,0.00031998,7]
[311556139,1705235439823,-1291.3942081,0.00031998,4]
[311556140,1705235439834,-190.0,0.00031998,4]
[311556141,1705235439843,-155.0697814,0.00031998,4]
[311556142,1705235439852,-3748.50969651,0.00031998,4]
[311556143,1705235439862,-262.4633005,0.00031998,4]
[311556144,1705235439871,-853.57612089,0.00031998,4]
[311556145,1705235439882,-155.24617669,0.00031998,4]
[311556146,1705235439893,-642.95973063,0.00031998,4]
[311556147,1705235439902,-442.023373,0.00031998,2]
[311556148,1705235439911,-442.023373,0.00031998,2]
[311556149,1705235439921,-151.0,0.00031999,2]
[311556150,1705235439929,-500.0,0.00031999,4]
[311556151,1705235439939,-477.39420188,0.00031999,4]
[311556152,1705235439949,-500.0,0.00031999,4]
[311556153,1705235439958,-175.92346028,0.00031999,4]
[311556154,1705235439967,-304.44632199,0.00031999,4]
[311556156,1705235439976,-196817.32189246,0.00032,15]